[Event "Szansa Chess Open 2022"]
[Site "Warsaw"]
[Date "2022.09.18"]
[Round "8"]
[White "Rudzinska, Michalina"]
[Black "Zochowski, Kacper"]
[Result "0-1"]
[ECO "A04"]
[WhiteElo "2289"]
[BlackElo "2257"]
[Annotator "ChessBase"]
[PlyCount "122"]
[EventDate "2022.09.17"]
[EventCountry "POL"]
[SourceTitle "playchess.com"]
[Source "ChessBase"]
[SourceQuality "1"]
[TimeControl "900+10"]

1. Nf3 {[%emt 0:00:03]} d6 {[%emt 0:00:03]} 2. b3 {[%emt 0:00:03]} e5 {[%emt 0:00:02]} 3. Bb2 {[%emt 0:00:03]} Nd7 {[%emt 0:00:11]} 4. d4 {[%emt 0:00:21]} e4 {[%emt 0:02:29]} 5. Nfd2 {[%emt 0:00:31]} f5 {[%emt 0:00:22]} 6. e3 {[%emt 0:00:04]} Ngf6 {[%emt 0:00:01]} 7. c4 {[%emt 0:00:16]} g6 {[%emt 0:00:04]} 8. Nc3 {[%emt 0:00:17]} Bh6 {[%emt 0:00:17]} 9. Be2 {[%emt 0:00:31]} O-O {[%emt 0:00:02]} 10. g3 {[%emt 0:01:09]} Bg7 {[%emt 0:00:31]} 11. h4 {[%emt 0:00:08]} h5 {[%emt 0:00:07]} 12. Qc2 {[%emt 0:00:48]} c6 {[%emt 0:00:06]} 13. Ba3 {[%emt 0:01:34]} Qe7 {[%emt 0:00:14]} 14. O-O-O {[%emt 0:01:36]} a6 {[%emt 0:00:10]} 15. f3 {[%emt 0:00:38]} Re8 {[%emt 0:02:12]} 16. fxe4 {[%emt 0:00:17]} fxe4 {[%emt 0:00:02]} 17. g4 {[%emt 0:00:44]} hxg4 {[%emt 0:00:06]} 18. Rdg1 {[%emt 0:00:18]} Nf8 {[%emt 0:00:13]} 19. Nf1 {[%emt 0:00:47]} b5 {[%emt 0:03:47]} 20. Nh2 {[%emt 0:01:21]} Rb8 {[%emt 0:00:20]} 21. Bb2 {[%emt 0:01:24]} bxc4 {[%emt 0:00:15]} 22. bxc4 {[%emt 0:00:05]} Bh6 {[%emt 0:01:32]} 23. Nd1 {[%emt 0:00:13]} d5 {[%emt 0:01:06]} 24. c5 {[%emt 0:00:40]} Rb7 {[%emt 0:00:57]} 25. Nxg4 {[%emt 0:00:48]} Bxg4 {[%emt 0:00:05]} 26. Bxg4 {[%emt 0:00:02]} Reb8 {[%emt 0:00:15]} 27. Rh3 {[%emt 0:00:38]} Nxg4 {[%emt 0:02:41]} 28. Rxg4 {[%emt 0:00:02]} Qe6 {[%emt 0:00:24]} 29. Qg2 {[%emt 0:00:33]} Kh7 {[%emt 0:00:17]} 30. Bc3 {[%emt 0:01:53]} Rb1+ {[%emt 0:00:16]} 31. Kc2 {[%emt 0:00:03]} Qf5 {[%emt 0:00:28]} 32. h5 {[%emt 0:00:51]} g5 {[%emt 0:00:19]} 33. Rh1 {[%emt 0:00:05]} R1b7 {[%emt 0:00:22]} 34. Rf1 {[%emt 0:00:04]} Qe6 {[%emt 0:00:03]} 35. Rg3 {[%emt 0:01:43]} Rf7 {[%emt 0:00:01]} 36. Rxf7+ {[%emt 0:00:09]} Qxf7 {[%emt 0:00:01]} 37. Qf2 {[%emt 0:00:10]} Qxh5 {[%emt 0:00:16]} 38. Qg2 {[%emt 0:00:21]} Ng6 {[%emt 0:00:20]} 39. Rh3 {[%emt 0:00:05]} Nh4 {[%emt 0:00:03]} 40. Qh2 {[%emt 0:00:04]} Rf8 {[%emt 0:00:16]} 41. Be1 {[%emt 0:00:23]} Rf1 {[%emt 0:00:10]} 42. Qc7+ {[%emt 0:00:10]} Bg7 {[%emt 0:00:01]} 43. Kd2 {[%emt 0:00:14]} Rxe1 {[%emt 0:00:30]} 44. Kxe1 {[%emt 0:00:05]} Ng2+ {[%emt 0:00:01]} 45. Kd2 {[%emt 0:00:08]} Qxh3 {[%emt 0:00:01]} 46. Qxc6 {[%emt 0:00:03]} Qh2 {[%emt 0:00:22]} 47. Kc1 {[%emt 0:00:07]} Qg1 {[%emt 0:00:08]} 48. Qe6 {[%emt 0:00:19]} Qf1 {[%emt 0:00:24]} 49. Qh3+ {[%emt 0:00:08]} Kg6 {[%emt 0:00:02]} 50. Qe6+ {[%emt 0:00:03]} Bf6 {[%emt 0:00:15]} 51. Qe8+ {[%emt 0:00:09]} Kg7 {[%emt 0:00:02]} 52. Qd7+ {[%emt 0:00:11]} Kh6 {[%emt 0:00:01]} 53. Qh3+ {[%emt 0:00:03]} Kg6 {[%emt 0:00:00]} 54. c6 {[%emt 0:00:11]} Qc4+ {[%emt 0:00:07]} 55. Kd2 {[%emt 0:00:23]} Qxa2+ {[%emt 0:00:03]} 56. Kc3 {[%emt 0:00:05]} Qc4+ {[%emt 0:00:13]} 57. Kd2 {[%emt 0:00:02]} Qd3+ {[%emt 0:00:13]} 58. Kc1 {[%emt 0:00:02]} Ne1 {[%emt 0:00:03]} 59. Qh2 {[%emt 0:00:13]} Qc4+ {[%emt 0:00:02]} 60. Kb1 {[%emt 0:00:13]} Qxc6 {[%emt 0:00:02]} 61. Nb2 {[%emt 0:00:13]} Nd3 {[%emt 0:00:04]} 0-1

[Event "Szansa Chess Open 2022"]
[Site "Warsaw"]
[Date "2022.09.18"]
[Round "8"]
[White "Lapaj, Mateusz"]
[Black "Bespalov, Ivan"]
[Result "1/2-1/2"]
[ECO "B01"]
[WhiteElo "2216"]
[BlackElo "1841"]
[Annotator "TA"]
[PlyCount "82"]
[EventDate "2022.09.17"]
[EventCountry "POL"]
[SourceTitle "playchess.com"]
[Source "ChessBase"]
[SourceQuality "1"]
[TimeControl "900+10"]

{[%evp 9,82,16,37,12,33,45,36,29,20,25,35,22,13,0,44,28,33,29,50,44,64,57,48,50,57,53,49,42,46,46,52,27,83,91,88,87,78,86,217,208,208,203,312,304,280,16,16,-118,-123,-105,-93,-140,0,-210,-67,-178,-184,-168,-152,-143,-150,-150,-146,-250,-145,-200,-196,-187,-133,-162,-116,-116,-109,-107,-79]} 1. e4 {[%emt 0:00:01]} d5 {[%emt 0:00:02]} 2. exd5 {[%emt 0:00:02]} Qxd5 {[%emt 0:00:01]} 3. Nc3 {[%emt 0:00:01]} Qd6 {[%emt 0:00:01]} 4. d4 {[%emt 0:00:06]} Nf6 {[%emt 0:00:06]} 5. Nge2 {[%emt 0:00:14]} c6 {[%emt 0:00:05]} 6. g3 {[%emt 0:00:11] B01: Scandinavian Defence.} Bg4 {[%emt 0:00:05]} 7. Bg2 {[%emt 0:00:03]} e6 {[%emt 0:00:03]} 8. Bf4 {[%emt 0:00:12] White is slightly better.} Qd8 {[%emt 0:00:02]} 9. h3 {[%emt 0:00:18]} Bh5 {[%emt 0:00:24]} 10. O-O {[%emt 0:04:20]} Be7 {[%emt 0:00:09]} 11. Qd2 {[%emt 0:00:26]} O-O {[%emt 0:00:25] [#]} 12. Be3 $146 {[%emt 0:04:11]} ({Predecessor:} 12. a3 Nbd7 13. g4 Bg6 14. Bh2 Nb6 15. Kh1 Nc4 16. Qc1 Qd7 17. b3 Nd6 18. Nf4 {½-½ (51) Meier,A (2171)-Fruehauf,N (2082) Zwettl 2012}) 12... Bg6 {[%emt 0:00:29]} 13. Nf4 {[%emt 0:00:03]} Nd5 {[%emt 0:00:15]} 14. Ncxd5 {[%emt 0:00:14]} cxd5 {[%emt 0:00:04]} 15. Nxg6 {[%emt 0:00:11] White is more active.} hxg6 {[%emt 0:00:02]} 16. c4 {[%emt 0:00:11]} Nc6 {[%emt 0:00:15]} 17. cxd5 {[%emt 0:00:01]} exd5 {[%emt 0:00:01]} 18. Qe2 {[%emt 0:00:35]} Bf6 {[%emt 0:00:18]} 19. Rfd1 {[%emt 0:00:12]} a6 {[%emt 0:00:02]} 20. Qf3 {[%emt 0:00:28]} Qb6 {[%emt 0:00:06]} (20... Ne7 $11 {remains equal.}) 21. Qxd5 $16 {[%emt 0:00:42]} Rad8 {[%emt 0:05:02]} 22. Qc5 {[%emt 0:03:22]} Qxb2 {[%emt 0:06:21][%cal Rc6d4]} 23. Rab1 {[%emt 0:00:01]} (23. d5 $5 {[%cal Rd5c6]} Ne5 24. d6 $16) 23... Qe2 {[%emt 0:00:04]} (23... Qxa2 $16 {keeps fighting.} 24. d5 (24. Rxb7 Nxd4 25. Kh2 Qa4 $11) 24... Na5) 24. Rd2 $18 {[%emt 0:00:47]} Qh5 {[%emt 0:00:08][%cal Of6d4]} 25. d5 {[%emt 0:01:29]} ({Much less strong is} 25. Rxb7 $6 Nxd4 26. Qxh5 (26. Bxd4 Qxc5 27. Bxc5 Rxd2 $11) 26... gxh5 $16) 25... Qf5 {[%emt 0:01:49]} (25... Ne5 {was necessary.} 26. g4 (26. Rxb7 Nf3+ 27. Bxf3 Qxf3 $16) 26... Qh4 27. Rxb7 Bg5) 26. Rxb7 {[%emt 0:00:05]} Ne5 {[%emt 0:00:02][%cal Bc6e5,Be5c4,Bc4d2][%mdl 32]} 27. Kh1 $2 {[%emt 0:00:38]} ({White should try} 27. g4 $18 Qc8 28. Rc7) 27... Rc8 $1 $11 {[%emt 0:00:02]} 28. Qa3 {[%emt 0:00:11]} (28. Rc7 $11 Rxc7 29. Qxc7) 28... Nc4 $1 $17 {[%emt 0:00:01][%csl LRa3,LRd2]} 29. Qd3 {[%emt 0:00:25]} Nxd2 {[%emt 0:00:03]} 30. Qxd2 {[%emt 0:00:01]} Qc2 {[%emt 0:00:45]} (30... Rc2 $17 31. Qd1 Rxa2) 31. Qa5 {[%emt 0:00:15] [#]} (31. Qxc2 $11 {and White stays safe.} Rxc2 32. d6) 31... Qd3 {[%emt 0:00:27]} (31... Bd4 $1 $19 {[%mdl 512]} 32. Bxd4 Qd1+ 33. Kh2 Qxd4) 32. Rb3 {[%emt 0:00:12] [#]} (32. Qa4 $15) 32... Qd1+ $1 $19 {[%emt 0:00:13]} 33. Kh2 {[%emt 0:00:01] [#]} Bd4 $1 {[%emt 0:00:19]} 34. Bxd4 {[%emt 0:00:26]} Qxd4 {[%emt 0:00:02]} 35. Rf3 {[%emt 0:00:14]} Rc2 {[%emt 0:00:59]} 36. Qxa6 {[%emt 0:00:04]} (36. Rf4 $17 Qd3 37. h4) 36... Qxd5 {[%emt 0:00:39]} (36... Rxf2 $19 37. Qd3 Qxd3 38. Rxd3 Rxa2) 37. a3 {[%emt 0:00:08]} (37. Qxg6 $17 fxg6 38. Rxf8+ Kxf8 39. Bxd5) 37... Qc5 {[%emt 0:00:18]} 38. Kg1 {[%emt 0:00:11]} Qd4 {[%emt 0:00:09]} (38... Rd8 $19 {Hoping for ...Rd1+.} 39. Qa4 f5) 39. h4 {[%emt 0:00:08]} Qd1+ {[%emt 0:00:20]} (39... Rb8 $19 {...Rb1+ is the strong threat.} 40. Rf4 Qc5) 40. Kh2 $17 {[%emt 0:00:00]} Qe1 {[%emt 0:00:23]} 41. Qb6 {[%emt 0:00:07]} Rc1 {[%emt 0:00:04] Quite a comeback for Black.  Weighted Error Value: White=0.37/Black=0.30} 1/2-1/2

[Event "Szansa Chess Open 2022"]
[Site "Warsaw"]
[Date "2022.09.18"]
[Round "8"]
[White "Padalka, Artem"]
[Black "Podgorski, Maciej"]
[Result "1-0"]
[ECO "D02"]
[WhiteElo "2184"]
[BlackElo "2059"]
[Annotator "TA"]
[PlyCount "203"]
[EventDate "2022.09.17"]
[EventCountry "POL"]
[SourceTitle "playchess.com"]
[Source "ChessBase"]
[SourceQuality "1"]
[TimeControl "900+10"]

{[%evp 11,203,8,-10,-26,-27,-43,-35,-59,-29,-47,-24,-53,-33,-49,-2,-1,-10,-11,-3,-42,-63,-74,118,17,21,13,19,8,72,8,66,18,38,27,30,17,15,40,56,29,47,52,154,142,130,146,141,157,141,113,139,4,8,13,95,104,93,78,81,75,103,99,29999,80,82,68,68,79,66,26,90,34,16,34,103,104,104,100,152,141,195,178,191,177,375,363,343,233,340,324,354,241,500,397,3186,3375,2213,2245,2058,1704,5418,2610,5969,6029,4674,0,1000,2222,1562,1444,1286,1169,1421,753,1509,1501,1198,1222,6065,5933,1327,897,752,0,4134,4610,2165,1960,29969,4710,29982,29983,29983,493,456,0,29983,29984,29986,29983,29986,29987,29987,29985,29985,29986,29987,29988,29988,29988,29988,29988,29990,29978,29978,29975,29977,29975,29975,29976,29980,29981,29982,29975,29975,29975,29975,29974,29976,29975,29975,29976,29977,29976,29977,29978,29979,29976,29976,29975,29976,29975,29972,0,29975,29976,29979,29980,29981,29950,29984,29985,29998,29999]} 1. d4 {[%emt 0:00:01]} d5 {[%emt 0:00:09]} 2. Nf3 {[%emt 0:00:02]} Nf6 {[%emt 0:00:02]} 3. g3 {[%emt 0:00:17]} e6 {[%emt 0:00:46]} 4. Bg2 {[%emt 0:00:04]} c5 {[%emt 0:00:59]} 5. O-O {[%emt 0:00:19]} Nc6 {[%emt 0:00:04]} 6. c3 {[%emt 0:02:20]} Be7 {[%emt 0:00:24]} 7. Bf4 {[%emt 0:02:21][%cal Oc3c4] D02: 1 d4 d5 2 Nf3 sidelines, including 2...Nf6 3 g3 and 2...Nf6 3 Bf4.} O-O {[%emt 0:00:19]} 8. Na3 {[%emt 0:01:14] [#]} Qb6 $146 {[%emt 0:00:29]} ({Predecessor:} 8... cxd4 9. cxd4 Qb6 10. Rb1 Bd7 11. Nc2 a5 12. Nfe1 Ne4 13. f3 Nd6 14. Be3 Nb4 {0-1 (37) Martin,L (1808)-Ocantos,M (2249) Villa Martelli 2016}) 9. Rb1 {[%emt 0:02:27] Black is slightly better.} Bd7 {[%emt 0:01:06]} 10. dxc5 {[%emt 0:00:58]} Bxc5 {[%emt 0:00:22]} 11. b4 {[%emt 0:00:40]} Be7 {[%emt 0:00:29]} 12. Nc2 {[%emt 0:00:57]} Ne4 {[%emt 0:00:16]} (12... Rac8 $15) 13. Qd3 $1 $11 {[%emt 0:00:33]} Bf6 {[%emt 0:01:33]} 14. c4 {[%emt 0:00:49]} Nc3 {[%emt 0:01:19][%cal Od5c4] Threatens to win with ...dxc4!} 15. c5 {[%emt 0:01:33]} Qd8 {[%emt 0:01:13]} 16. Rb3 {[%emt 0:00:26]} e5 $2 {[%emt 0:00:39]} (16... Ne4 $17) 17. Qxc3 {[%emt 0:00:34]} ({White should play} 17. Nxe5 $16 Nxe5 18. Qxc3) 17... exf4 {[%emt 0:00:11]} 18. Qd3 {[%emt 0:00:04]} fxg3 {[%emt 0:00:12]} 19. hxg3 {[%emt 0:00:01]} Qc8 {[%emt 0:00:40]} (19... a6 $11) 20. Ncd4 {[%emt 0:00:56] White is more active.} (20. Qxd5 Be6 21. Qe4 Bxb3 22. axb3 Re8 $15) ({Better is} 20. Ne3 $1 $16) 20... Re8 {[%emt 0:01:06]} (20... a5 $11) 21. e3 {[%emt 0:00:12]} (21. Nb5 $1 $14 {might be stronger.}) 21... a5 {[%emt 0:00:41]} 22. a3 {[%emt 0:00:30][%cal Ba2a3,Ba3b4,Bb4b5][%mdl 32]} axb4 {[%emt 0:00:39]} 23. axb4 {[%emt 0:00:01]} h5 {[%emt 0:00:33]} 24. Nb5 {[%emt 0:00:10] Pair of Knights!} Bf5 {[%emt 0:02:09]} 25. Qd2 {[%emt 0:00:02]} Qd7 {[%emt 0:00:31]} 26. Nd6 {[%emt 0:00:01]} Re7 {[%emt 0:00:25]} (26... Red8 $14) 27. Nxf5 $16 {[%emt 0:00:27]} ({Reject} 27. Qxd5 $6 Be6 28. Qd3 Bxb3 29. Qxb3 Nd8 $11) 27... Qxf5 {[%emt 0:00:01]} 28. b5 $1 {[%emt 0:00:12]} Nd8 {[%emt 0:00:48]} 29. Rd3 $1 {[%emt 0:00:16]} Rd7 {[%emt 0:00:14]} 30. Rd1 {[%emt 0:00:02]} Rc8 {[%emt 0:01:29]} 31. Rxd5 {[%emt 0:00:15]} (31. Nd4 $16 Bxd4 32. exd4 (32. Rxd4 Ne6 $14)) 31... Rxd5 $11 {[%emt 0:00:01]} 32. Qxd5 {[%emt 0:00:02]} Qxd5 {[%emt 0:00:01]} (32... Rxc5 $11 {remains equal.} 33. Qd6 Ne6) 33. Rxd5 $16 {[%emt 0:00:01]} Ne6 {[%emt 0:00:01]} 34. Rxh5 {[%emt 0:00:33]} Nxc5 {[%emt 0:00:01]} 35. Nd4 {[%emt 0:00:18] Black must now prevent Bh3.} b6 {[%emt 0:00:32]} 36. Nc6 {[%emt 0:00:17]} Kf8 $2 {[%emt 0:00:18][%mdl 8192]} (36... Rc7 $16) 37. Rd5 $2 {[%emt 0:00:08]} (37. Rh8# {mates}) 37... Ra8 {[%emt 0:00:14]} 38. Bf3 {[%emt 0:00:29]} Ra1+ {[%emt 0:00:01]} 39. Kg2 {[%emt 0:00:01]} Rb1 {[%emt 0:00:18]} 40. Nd4 {[%emt 0:00:12]} Be7 {[%emt 0:00:14] [#]} (40... Bxd4 $11 {keeps the balance.} 41. exd4 Ne6) 41. Be2 {[%emt 0:00:24]} (41. Rh5 $1 $16 {[%cal Rh5h8]} Kg8 42. Bd5) 41... Rb2 $14 {[%emt 0:00:05]} 42. Kf3 {[%emt 0:00:01]} Ne6 {[%emt 0:00:19] [#]} (42... g6 $14) 43. Nxe6+ $1 $16 {[%emt 0:00:14] Black is on the road to losing.} fxe6 {[%emt 0:00:02][%mdl 4096] Endgame KRB-KRB} 44. Rd7 {[%emt 0:00:01]} g5 {[%emt 0:00:19]} (44... Rb4 $142 45. Rc7 Bc5) 45. Bc4 {[%emt 0:00:04]} g4+ {[%emt 0:00:12]} (45... Ke8 $16 {keeps fighting.} 46. Bxe6 Rxb5) 46. Kxg4 $18 {[%emt 0:00:12]} Rxf2 {[%emt 0:00:07]} 47. Bxe6 {[%emt 0:00:02]} Bc5 $2 {[%emt 0:00:03]} (47... Re2 {was called for.} 48. Kf3 Rc2) 48. e4 {[%emt 0:00:08]} Ke8 {[%emt 0:00:10]} 49. Rc7 {[%emt 0:00:22]} Rb2 {[%emt 0:00:05]} (49... Bd4 $142 50. Rb7 Rb2) 50. Rb7 {[%emt 0:00:29]} Kd8 {[%emt 0:00:24]} 51. Bd7 {[%emt 0:00:01]} Re2 $2 {[%emt 0:00:05]} (51... Bd6 52. Bc6 Bc7) 52. Bc6 {[%emt 0:00:10]} Re3 $2 {[%emt 0:00:14]} (52... Re1 53. Kf5 Kc8) 53. Kf4 {[%emt 0:00:04]} Re1 {[%emt 0:00:08]} 54. g4 {[%emt 0:00:13]} Rf1+ {[%emt 0:00:03]} 55. Ke5 {[%emt 0:00:03]} Rg1 {[%emt 0:00:19]} 56. Kf5 {[%emt 0:00:23]} (56. Rd7+ $142 Kc8 57. Kf5) 56... Rf1+ {[%emt 0:00:09]} 57. Kg6 {[%emt 0:00:05]} Rg1 {[%emt 0:00:05]} 58. Kf5 {[%emt 0:00:25]} (58. Rd7+ $142 Kc8 59. g5) 58... Rf1+ {[%emt 0:00:01]} 59. Ke6 {[%emt 0:00:06] aiming for g5.} Rg1 {[%emt 0:00:17]} 60. Rd7+ {[%emt 0:00:10]} Kc8 {[%emt 0:00:05]} 61. Rg7 {[%emt 0:00:09]} Be3 {[%emt 0:00:12]} 62. Kd6 {[%emt 0:00:15][%cal Rg7g8]} Rd1+ {[%emt 0:00:09]} 63. Bd5 {[%emt 0:00:01][%cal Rg7g8]} Bc5+ {[%emt 0:00:18]} 64. Kc6 {[%emt 0:00:08] White wants to mate with Rg8+.} Kd8 {[%emt 0:00:03]} 65. Rd7+ {[%emt 0:00:02]} Kc8 {[%emt 0:00:05]} 66. e5 {[%emt 0:00:20] Strongly threatening e6.} Rc1 {[%emt 0:00:17]} 67. Rf7 $2 {[%emt 0:00:20]} (67. Rc7+ $18 Kd8 68. Kb7) 67... Bd4+ $2 {[%emt 0:00:15][%mdl 8192]} (67... Be7+ $11 68. Bc4 (68. Kxb6 {leads to mate.} Bd8+) 68... Rxc4+ 69. Kd5 Rc5+ 70. Ke6 Bh4) 68. Kd6 {[%emt 0:00:02][%cal Rf7f8]} Bc5+ {[%emt 0:00:02]} 69. Ke6 {[%emt 0:00:01] And now g5 would win.} Re1 {[%emt 0:00:11]} 70. g5 {[%emt 0:00:09] Intending g6 and mate.} Bd4 {[%emt 0:00:03]} 71. Rf5 {[%emt 0:00:02]} Rg1 {[%emt 0:00:16]} 72. Kd6 {[%emt 0:00:15]} (72. Kf6 $142 Kd8 73. g6 Rg3 74. g7 Be3 75. g8=Q+ Rxg8 76. Bxg8 Ke8 77. Bd5) 72... Bc5+ {[%emt 0:00:10]} 73. Ke6 $2 {[%emt 0:00:19]} (73. Kc6 $18) 73... Be3 $2 {[%emt 0:00:07][%mdl 8192]} (73... Bd4 $11 74. Kf7 Kd8) 74. Kf6 {[%emt 0:00:02]} Rd1 {[%emt 0:00:19]} 75. Be6+ {[%emt 0:00:21]} Kc7 {[%emt 0:00:00]} 76. g6 {[%emt 0:00:01]} Bh6 {[%emt 0:00:02]} 77. g7 {[%emt 0:00:05]} Bxg7+ {[%emt 0:00:25]} 78. Kxg7 {[%emt 0:00:01] KRB-KR} Rb1 {[%emt 0:00:06]} 79. Rf7+ {[%emt 0:00:06]} Kd8 {[%emt 0:00:08]} 80. Bd7 {[%emt 0:00:08]} Rg1+ {[%emt 0:00:10]} 81. Kf8 {[%emt 0:00:02]} Re1 {[%emt 0:00:08]} 82. e6 {[%emt 0:00:03]} Rxe6 {[%emt 0:00:02]} 83. Bc6 {[%emt 0:00:18]} Re1 {[%emt 0:00:38]} 84. Rb7 {[%emt 0:00:07]} Rf1+ {[%emt 0:00:02]} 85. Kg7 {[%emt 0:00:04]} Rg1+ {[%emt 0:00:05]} 86. Kf6 {[%emt 0:00:04]} Re1 {[%emt 0:00:07]} 87. Rxb6 {[%emt 0:00:05]} Kc7 {[%emt 0:00:01]} 88. Rb7+ {[%emt 0:00:02]} Kd6 {[%emt 0:00:02]} 89. Rd7+ {[%emt 0:00:01]} Kc5 {[%emt 0:00:01]} 90. Rd5+ {[%emt 0:00:05]} Kb6 {[%emt 0:00:02]} 91. Re5 {[%emt 0:00:02]} Rd1 {[%emt 0:00:12]} 92. Ke6 {[%emt 0:00:01]} Rd8 {[%emt 0:00:02]} 93. Ke7 {[%emt 0:00:38]} Rd4 {[%emt 0:00:07]} 94. Bd7 {[%emt 0:00:09]} Kc7 {[%emt 0:00:21]} 95. Rc5+ {[%emt 0:00:03]} Kb6 {[%emt 0:00:05]} 96. Rh5 {[%emt 0:00:20]} Kc7 {[%emt 0:00:27]} 97. Rc5+ {[%emt 0:00:42]} Kb6 {[%emt 0:00:01]} 98. Rc2 {[%emt 0:00:01] White mates.} Rd5 {[%emt 0:00:51]} 99. Ra2 {[%emt 0:00:20]} Rd4 {[%emt 0:00:13]} 100. Kd8 {[%emt 0:00:22]} Rh4 {[%emt 0:00:13]} 101. Ra6+ {[%emt 0:00:08]} Kb7 {[%emt 0:00:02]} 102. Bc6+ {[%emt 0:00:01] Weighted Error Value: White=0.36/Black=0.52} 1-0

[Event "Szansa Chess Open 2022"]
[Site "Warsaw"]
[Date "2022.09.18"]
[Round "8"]
[White "Alvarado, Carlos"]
[Black "Niezhentsev, Kyrylo"]
[Result "1/2-1/2"]
[ECO "B20"]
[WhiteElo "2108"]
[BlackElo "2009"]
[Annotator "TA"]
[PlyCount "76"]
[EventDate "2022.09.17"]
[EventCountry "POL"]
[SourceTitle "playchess.com"]
[Source "ChessBase"]
[SourceQuality "1"]
[TimeControl "900+10"]

{[%evp 9,76,-27,7,-4,6,0,-12,-11,-17,-8,-11,-14,-11,-25,-26,-5,-14,-17,0,-3,0,0,0,-5,0,-17,0,0,0,0,0,-21,0,-8,5,0,0,-10,0,0,-5,0,0,0,0,-10,-6,-20,-8,-26,0,0,46,-46,0,0,0,-9,-9,-14,0,0,0,-17,0,0,0,-21,0]} 1. e4 {[%emt 0:00:03]} c5 {[%emt 0:00:01]} 2. b3 {[%emt 0:00:01]} g6 {[%emt 0:00:07]} 3. Bb2 {[%emt 0:00:01]} Nf6 {[%emt 0:00:02]} 4. e5 {[%emt 0:00:05]} Nd5 {[%emt 0:00:02]} 5. Bc4 {[%emt 0:00:23]} e6 {[%emt 0:00:45] [#]} 6. Nc3 $146 {[%emt 0:00:30] B20: Sicilian: Unusual White 2nd moves.} ({Predecessor:} 6. Bxd5 exd5 7. d4 d6 8. exd6 Bg7 9. Nf3 O-O 10. O-O Nc6 11. Qc1 cxd4 12. h3 Bf5 13. Rd1 Rc8 14. Na3 Qxd6 15. Nb5 Qd7 16. Nbxd4 Rfd8 {½-½ (16) Petenyi,T (2464)-Jirovsky,M (2480) Czech Republic 2014}) 6... Nxc3 {[%emt 0:00:33]} 7. Bxc3 {[%emt 0:00:03]} Bg7 {[%emt 0:00:06]} 8. Nf3 {[%emt 0:00:04]} Nc6 {[%emt 0:00:06]} 9. O-O {[%emt 0:00:47]} O-O {[%emt 0:00:18]} 10. Re1 {[%emt 0:00:37]} d5 {[%emt 0:01:14]} 11. exd6 {[%emt 0:00:06]} Qxd6 {[%emt 0:00:03]} 12. Bxg7 {[%emt 0:00:11]} Kxg7 {[%emt 0:00:03]} 13. Bb5 {[%emt 0:00:22]} Nd4 {[%emt 0:00:53]} 14. Nxd4 {[%emt 0:00:02]} cxd4 {[%emt 0:03:34]} 15. Qe2 {[%emt 0:00:09]} a6 {[%emt 0:00:03]} 16. Bd3 {[%emt 0:00:09]} Bd7 {[%emt 0:00:02]} 17. a4 {[%emt 0:00:18]} Bc6 {[%emt 0:00:11]} 18. Qe5+ {[%emt 0:00:42]} Qxe5 {[%emt 0:00:02]} 19. Rxe5 {[%emt 0:00:01]} Rac8 {[%emt 0:00:14]} 20. Bc4 {[%emt 0:00:34]} Rfd8 {[%emt 0:00:10]} 21. a5 {[%emt 0:00:21]} Rd7 {[%emt 0:01:23]} 22. f3 {[%emt 0:00:32]} Bd5 {[%emt 0:01:25]} 23. d3 {[%emt 0:00:07]} Bc6 {[%emt 0:01:15]} 24. Rc5 {[%emt 0:00:45]} Rdc7 {[%emt 0:00:33]} 25. Kf2 {[%emt 0:01:02]} Bd5 {[%emt 0:00:34]} 26. Rxc7 {[%emt 0:00:03]} Rxc7 $11 {[%emt 0:00:01][%mdl 4096] Endgame KRB-KRB} 27. Ke2 {[%emt 0:00:10]} Bc6 {[%emt 0:00:03]} 28. Kd2 {[%emt 0:00:03]} Kf6 {[%emt 0:00:05]} 29. b4 {[%emt 0:00:57]} Ke5 {[%emt 0:00:33]} 30. Rb1 {[%emt 0:00:18]} Bb5 {[%emt 0:00:12]} (30... Kf4 $11 {is superior.}) 31. Bb3 {[%emt 0:00:15]} (31. Re1+ $14 Kd6 32. Bxb5 axb5 33. f4) 31... Kd6 {[%emt 0:00:09]} (31... h5 $15) 32. f4 {[%emt 0:00:11] The position is equal.} Rc3 {[%emt 0:00:14]} 33. g3 {[%emt 0:00:29]} h5 {[%emt 0:00:30]} 34. Ba2 {[%emt 0:03:00]} Ba4 {[%emt 0:00:23]} 35. Rb2 {[%emt 0:00:13]} Bb5 {[%emt 0:00:14]} 36. Rb1 {[%emt 0:00:19]} Ba4 {[%emt 0:00:02]} 37. Rb2 {[%emt 0:00:01]} Bb5 {[%emt 0:00:01]} 38. Rb1 {[%emt 0:00:01]} Ba4 {[%emt 0:00:01] A balanced but interesting game.  Weighted Error Value: White=0.10 (very precise) /Black=0.09 (flawless)} 1/2-1/2